Cogmind - Beta 15 @@@ ROGUE MODE // 2025.08.20 @ 00:56:12 Player: the Result: Self-destructed Performance ------------- Evolutions (8) 4000 Regions Visited (21) 4200 Robots Destroyed (257) 1285 Value Destroyed (11074) 11074 Prototype IDs (45) 900 Alien Tech Used (6) 1200 Bonus (6062) 6062 TOTAL SCORE: 28721 Bonus ------- High Alert Combat Kills 781 Follower Combat Kills 240 Met Zhirov 300 Used Core Reset Matrix 3000 Met Sigix 2000 Friendly Fire -259 Cogmind --------- Core Integrity 842/1450 Matter 288/300 Energy 100/100 System Corruption 31% Temperature Cool (63) Movement Core (1000) Ox19 Location -2/Research Parts ------- > --- POWER (3) -------- (None) > --- PROPULSION (5) --- (None) > --- UTILITY (12) ----- Advanced Coolant Injector High-capacity Storage Unit Enhanced Optical Array Advanced Signal Interpreter Advanced Terrain Scan Processor Advanced System Shield Advanced Component Analysis Suite > --- WEAPON (4) ------- Hvy. Thermal Neutron Construct/C > --- INVENTORY (20) --- Experimental Power Amplifier Experimental Power Amplifier Advanced Coolant Injector Matter Compressor (250) Particle Accelerator Centrium Medium Armor Plating Advanced Force Field Long-range Tractor Beam Hacking Drone Bay (1/1) Rainbow Chip Subatomic Replicator Terrabomb Enhanced Nova Cannon Helical Railgun Enhanced Hardcell Cannon Sigix Containment Pod Peak State ------------ > --- POWER ------------ Light Particle Reactor Multi-Quantum Reactor > --- PROPULSION ------- Thunder-Centrium Exoskeleton > --- UTILITY ---------- Armored Scrap Engine Advanced Cooling System High-capacity Storage Unit Enhanced Optical Array Long-range Sensor Array Advanced Signal Interpreter Long-range Terrain Scanner Advanced Terrain Scan Processor Phase Redirector Advanced Component Analysis Suite > --- WEAPON ----------- Hvy. Thermal Neutron Construct/C > --- INVENTORY -------- Advanced Power Amplifier Advanced Coolant Injector Advanced Coolant Injector Matter Compressor Advanced Sensor Array Particle Accelerator Centrium Medium Armor Plating Centrium Medium Armor Plating Improved Force Field Stealth Drone Bay Hacking Drone Bay Rainbow Chip Transdimensional Reconstructor Subatomic Replicator Helical Railgun Helical Railgun Helical Railgun Helical Railgun [Rating: 168] Favorites ----------- Power Constructs Engine Ion Engine Power Core Neutrino Core Reactor Constructs Propulsion Constructs Treads Light Treads Leg Constructs Wheel Armored Wheel Utility Armored Scrap Engine Device Armored Scrap Engine Storage High-capacity Storage Unit Processor Advanced Signal Interpreter Hackware Hacking Suite Protection Centrium Medium Armor Plating Artifact Phase Redirector Weapon Constructs Energy Gun Heavy EM Pulse Gun Energy Cannon Constructs Ballistic Gun Subdweller Machine Gun Launcher Grenade Launcher Special Weapon Remote Datajack Build | -11 -10 -10 -8 -6 -6 -6 -6 -5 -5 -5 -5 -5 -4 -4 -4 -4 -4 -3 -3 -3 -2 ------- Run | Yrd Mat Sub Rec Fac Low Low Zio Pro Fac Upp Upp War Pro Fac Upp Upp Zhi Pro Res Qua Res Slots Evolved 16 | . . . . 8 . . . . 2 . . . . 2 . . . . 2 . 2 Power 2 | . . . . 1 . . . . . . . . . 1 . . . . . . . Propulsion 3 | . . . . 2 . . . . 1 . . . . . . . . . . . . Utility 9 | . . . . 4 . . . . 1 . . . . 1 . . . . 2 . 1 Weapon 2 | . . . . 1 . . . . . . . . . . . . . . . . 1 Parts Attached 86 | 7 8 14 3 13 . 1 1 1 9 1 2 . 1 3 2 1 2 . 4 6 7 Power 12 | 1 2 2 . . . . . 1 1 . 1 . . . . . . . . 4 . Engine 6 | 1 2 2 . . . . . 1 . . . . . . . . . . . . . Core 3 | . . . . . . . . . 1 . 1 . . . . . . . . 1 . Reactor 3 | . . . . . . . . . . . . . . . . . . . . 3 . Propulsion 4 | 2 . 2 . . . . . . . . . . . . . . . . . . . Treads 2 | 2 . . . . . . . . . . . . . . . . . . . . . Leg . | . . . . . . . . . . . . . . . . . . . . . . Wheel 2 | . . 2 . . . . . . . . . . . . . . . . . . . Hover . | . . . . . . . . . . . . . . . . . . . . . . Flight . | . . . . . . . . . . . . . . . . . . . . . . Utility 55 | 2 2 3 1 13 . 1 1 . 8 1 1 . 1 3 2 1 2 . 4 2 7 Device 31 | 1 . 1 1 8 . . 1 . 5 . . . 1 3 1 . 1 . 2 1 5 Storage 4 | 1 2 . . . . . . . . . 1 . . . . . . . . . . Processor 7 | . . . . 4 . . . . 1 1 . . . . . . . . 1 . . Hackware 2 | . . . . . . . . . . . . . . . . . . . . . 2 Protection 10 | . . 2 . 1 . 1 . . 2 . . . . . 1 1 1 . 1 . . Artifact 1 | . . . . . . . . . . . . . . . . . . . . 1 . Weapon 15 | 2 4 7 2 . . . . . . . . . . . . . . . . . . Energy Gun 5 | . 3 2 . . . . . . . . . . . . . . . . . . . Energy Cannon . | . . . . . . . . . . . . . . . . . . . . . . Ballistic Gun 5 | 2 . 2 1 . . . . . . . . . . . . . . . . . . Ballistic Cannon . | . . . . . . . . . . . . . . . . . . . . . . Launcher 4 | . 1 3 . . . . . . . . . . . . . . . . . . . Special Weapon 1 | . . . 1 . . . . . . . . . . . . . . . . . . Impact Weapon . | . . . . . . . . . . . . . . . . . . . . . . Slashing Weapon . | . . . . . . . . . . . . . . . . . . . . . . Piercing Weapon . | . . . . . . . . . . . . . . . . . . . . . . Special Melee Weapon . | . . . . . . . . . . . . . . . . . . . . . . Unidentified Prototypes 12 | . . . 1 3 . 1 1 . . . . . 1 . . . 3 . . 2 . Parts Lost 27 | . . 3 1 3 . . . . 1 . . . . . . . . . 1 3 15 Power 5 | . . . . 1 . . . . . . . . . . . . . . 1 1 2 Propulsion 8 | . . . 1 1 . . . . . . . . . . . . . . . 1 5 Utility 10 | . . . . 1 . . . . 1 . . . . . . . . . . 1 7 Weapon 4 | . . 3 . . . . . . . . . . . . . . . . . . 1 Highest Loss Streak 13 | . . 2 1 2 . . . . 1 . . . . . . . . . 1 1 13 To Critical Strikes 1 | . . . . . . . . . . . . . . . . . . . . . 1 Average Backups 13 | 1 7 6 6 13 18 17 16 17 17 18 18 18 18 18 19 19 19 19 18 18 15 Power . | . 1 . . . . . . . . . . . . . . . . . . . . Propulsion . | . 2 . . . . . . . . . . . . . . . . . . . . Utility 9 | . . 2 2 10 13 13 12 13 13 14 14 14 15 16 18 18 17 18 16 12 11 Weapon 2 | . 3 3 3 3 5 4 3 3 3 3 3 3 3 2 1 1 . . . 2 1 Tool/Special . | . . . . . . . . . . . . . . . . . . . . . . Unused Backups 70 | . 3 1 15 12 . 2 1 . 1 . . . 1 7 . . 2 . 1 5 19 Power 5 | . . . 3 1 . . . . . . . . . . . . . . . . 1 Propulsion 2 | . . 1 1 . . . . . . . . . . . . . . . . . . Utility 37 | . 1 . 4 8 . . 1 . 1 . . . . 5 . . 1 . 1 3 12 Weapon 23 | . 2 . 7 3 . 2 . . . . . . . 2 . . 1 . . 2 4 Tool/Special 3 | . . . . . . . . . . . . . 1 . . . . . . . 2 Average Slot Usage (%) 63 | . 100 86 69 51 53 51 50 50 50 55 57 55 55 53 55 55 54 55 58 62 54 Engine 6 | . 14 13 13 6 6 6 6 6 5 5 5 . . . . . . . . . . Reactor 1 | . . . . . . . . . . . . . . . 2 5 5 5 4 8 3 Treads 2 | . 28 3 . . 4 6 6 5 . . . . . . . . . . . . . Leg 2 | . . . 5 1 1 . . . 5 5 5 5 5 5 2 . . . . . 2 Wheel 6 | . . 24 14 3 . . . . . . . . . . 2 5 5 5 4 4 1 Device 12 | . 14 1 7 12 13 12 12 12 16 16 16 16 16 18 19 20 20 20 20 21 21 Storage 4 | . 14 3 1 5 6 6 6 6 5 5 5 5 5 5 5 5 5 5 4 4 4 Processor 6 | . . . . 11 6 6 6 6 5 10 11 11 11 10 10 10 10 10 12 13 12 Protection 5 | . . 9 5 1 6 6 6 6 5 5 5 5 5 5 5 5 4 5 5 4 1 Energy Gun 4 | . 20 20 . . . . . . . . . . . . . . . . . . . Energy Cannon 1 | . . . . 2 6 6 6 5 . . . . . . . . . . . . . Ballistic Gun 3 | . 7 5 15 . . . . . . . . . . . . . . . . . . Ballistic Cannon 2 | . . . 4 3 . . . . 5 5 5 5 5 5 5 5 5 5 4 3 3 Peak Build Rating 168 | 7 10 17 37 92 86 89 93 95 106 99 107 107 111 123 147 147 150 148 163 168 161 Average Rating 78 | 5 9 13 23 73 85 85 87 87 98 97 101 107 110 116 134 146 147 148 158 161 151 On Entrance 92 | . 7 10 17 37 85 85 87 87 95 93 99 107 107 111 123 147 147 148 148 147 146 Naked Turns . | . . . . . . . . . . . . . . . . . . . . . . Heaviest Build 119 | 13 52 56 55 82 68 76 76 86 96 85 95 91 91 103 116 115 115 115 117 119 100 Greatest Support 178 | 40 40 40 44 98 83 83 83 83 125 125 125 125 125 125 156 156 156 156 156 156 178 Greatest Overweight (x) 2 | 1 1 2 2 . . . . 1 1 . . . . . . . . . . . 1 Average Overweight (x) . | . . 1 . . . . . . . . . . . . . . . . . . . Largest Inventory Capacity 20 | 8 20 20 20 20 20 20 20 20 20 20 20 20 20 20 20 20 20 20 20 20 20 Average Capacity 15 | 7 8 7 7 19 20 20 20 20 20 20 20 20 20 20 20 20 20 20 20 20 20 Most Carried 20 | 2 10 20 20 20 20 20 20 20 20 20 20 20 20 20 20 20 20 20 20 20 20 Average Carried 14 | 1 7 6 6 15 20 19 19 20 19 20 20 20 19 18 20 19 19 20 18 19 17 Final Capacity 20 | 8 10 20 5 20 20 20 20 20 20 20 20 20 20 20 20 20 20 20 20 20 20 Final Carried 20 | 2 10 20 5 20 20 20 20 20 20 20 20 20 19 20 20 20 20 20 19 17 17 Scrap Engine Consumption 138 | . . . 29 36 1 6 . 2 13 . 4 . 1 15 . 4 2 . 3 4 18 Constructs Created 4 | . . . 3 . . . . . . . . . . . . . . . . . 1 Constructs Modified 48 | . . . 4 15 1 . . 5 2 . 2 . . . 6 . . . . 3 10 Class Distribution -------------------- 55% | Construct 22% | Mutant 9% | Commander-Construct 5% | Alien-Skirmisher 3% | Commander-Mutant 3% | Subdweller-Mutant Dominant Class ---------------- Mutant | -10/Materials Mutant | -10/Subcaves Commander-Construct | -8/Recycling Construct | -6/Factory Construct | -6/Lower Caves Construct | -6/Lower Caves Construct | -6/Zion Construct | -5/Proximity Caves Construct | -5/Factory Construct | -5/Upper Caves Construct | -5/Upper Caves Construct | -5/Warlord Construct | -4/Proximity Caves Construct | -4/Factory Construct | -4/Upper Caves Construct | -4/Upper Caves Construct | -4/Zhirov Construct | -3/Proximity Caves Construct | -3/Research Construct | -3/Quarantine Alien-Skirmisher | -2/Research Resources | -11 -10 -10 -8 -6 -6 -6 -6 -5 -5 -5 -5 -5 -4 -4 -4 -4 -4 -3 -3 -3 -2 ----------- Run | Yrd Mat Sub Rec Fac Low Low Zio Pro Fac Upp Upp War Pro Fac Upp Upp Zhi Pro Res Qua Res Matter Collected 8317 | 320 168 864 254 1247 100 271 3 323 655 153 86 . 224 510 230 365 . 163 377 1056 948 Remotely 148 | . . . . . . . . . . . . . . . . . . . . . 148 Salvage Created 13442 | 253 775 798 725 1483 127 419 15 508 1331 248 157 . . 1165 228 367 . 376 716 1361 2390 Parts 687 | 19 40 51 23 78 9 11 3 13 59 . 5 . . 65 18 10 . 15 35 88 145 Haulers Intercepted 4 | . 2 . . 1 . . . . . . . . . 1 . . . . . . . Recyclers Shooed 6 | 1 1 . . 1 . . . . . . . . . 1 . . . . . . 2 Parts Field Recycled . | . . . . . . . . . . . . . . . . . . . . . . Retrieved Matter . | . . . . . . . . . . . . . . . . . . . . . . Parts Self-Destructed 91 | . . 10 . . 9 13 . 11 . . 10 . . . 18 5 . 15 . . . Prevented 2 | . . 1 . . . 1 . . . . . . . . . . . . . . . Kills | -11 -10 -10 -8 -6 -6 -6 -6 -5 -5 -5 -5 -5 -4 -4 -4 -4 -4 -3 -3 -3 -2 ------- Run | Yrd Mat Sub Rec Fac Low Low Zio Pro Fac Upp Upp War Pro Fac Upp Upp Zhi Pro Res Qua Res Combat Hostiles Destroyed 172 | . 9 18 5 20 2 6 . 4 25 . 2 . . 13 7 3 . 5 8 17 28 Melee 1 | . . . . . . . . . . . . . . . . . . . . . 1 Guns 21 | . 6 10 5 . . . . . . . . . . . . . . . . . . Cannons 135 | . . . . 20 2 6 . 4 23 . 2 . . 13 7 3 . 5 8 15 27 AOE 12 | . 3 7 . . . . . . 2 . . . . . . . . . . . . Classes Destroyed 25 | 3 5 5 1 4 . 1 1 . . . 1 . . 1 . 1 . . . . 2 Worker 16 | 2 1 . . 3 . . . . 1 . . . . 1 . . . . 2 2 4 Builder 9 | . 1 . . 2 . . . . . . . . . . . . . . 1 2 3 Tunneler 10 | 7 . . . 1 . . . . . . . . . . . . . . 1 . 1 Hauler 4 | . 2 . . 1 . . . . . . . . . 1 . . . . . . . Recycler 19 | 1 3 . 7 1 . . . . 1 . . . . . . . . . 1 2 3 Minesweeper 1 | . . . . . . 1 . . . . . . . . . . . . . . . Operator 7 | . . . . 1 . . . . . . . . . 2 . . . . 1 1 2 Turret 2 | . . 2 . . . . . . . . . . . . . . . . . . . Watcher 15 | . 3 . . 5 . . . . 2 . . . . 4 . . . . 1 . . Swarmer 31 | . 3 4 . 3 . 4 . . 5 . . . . . 5 2 . . 2 . 3 Saboteur 1 | . . . . . . . . . . . . . . . . . . . . . 1 Grunt 46 | . 6 . 1 4 . 1 . 3 14 . . . . . . . . 5 3 3 6 Brawler 1 | . . . . . . . . . . . . . . . . . . . . . 1 Duelist 1 | . . . . . . . . . . . . . . . . . . . . . 1 Protector 2 | . . . 1 . . . . . . . . . . . . . . . . 1 . Sentry 14 | . . 1 3 4 . 1 . 1 . . . . . 2 . 1 . . 1 . . Specialist 1 | . . . . . . . . . . . . . . 1 . . . . . . . Hunter 15 | . . . . 4 2 . . . 2 . . . . 4 . . . . 2 . 1 Programmer 46 | . . . . 4 . . . . 4 . 2 . . 6 2 . . . . 13 15 Heavy 1 | . . . . 1 . . . . . . . . . . . . . . . . . Cobbler 1 | . . 1 . . . . . . . . . . . . . . . . . . . Subdweller 13 | . . 13 . . . . . . . . . . . . . . . . . . . Scientist 1 | . . 1 . . . . . . . . . . . . . . . . . . . Zionite 1 | . . . . . . . 1 . . . . . . . . . . . . . . Samaritan 1 | . . . . . . . . . . . 1 . . . . . . . . . . Savage 1 | . . . . . . . . . . . . . . . . 1 . . . . . Best Kill Streak 12 | 6 5 6 4 7 2 4 1 3 8 . 3 . . 6 5 1 . 5 10 5 12 Combat Bots Only 11 | . 3 4 2 6 2 4 . 3 8 . 2 . . 5 5 1 . 5 7 3 11 Max Kills in Single Turn 3 | 1 2 3 1 2 1 1 1 1 3 . 1 . . 1 1 1 . 1 1 1 2 Gunslinging . | . . . . . . . . . . . . . . . . . . . . . . Exploded 2 | . 2 2 . . . . . . 2 . . . . . . . . . . . . Melee 1 | . . . . . . . . . . . . . . . . . . . . . 1 Uniques/NPCs Destroyed . | . . . . . . . . . . . . . . . . . . . . . . Combat | -11 -10 -10 -8 -6 -6 -6 -6 -5 -5 -5 -5 -5 -4 -4 -4 -4 -4 -3 -3 -3 -2 -------- Run | Yrd Mat Sub Rec Fac Low Low Zio Pro Fac Upp Upp War Pro Fac Upp Upp Zhi Pro Res Qua Res Hostile Shots Fired 1223 | . 13 56 22 133 9 30 46 12 119 . 7 . 8 45 38 . . 6 153 147 379 Missed 352 | . 6 16 8 33 3 10 18 5 29 . 3 . 2 17 5 . . 2 47 40 108 Hits 871 | . 7 40 14 100 6 20 28 7 90 . 4 . 6 28 33 . . 4 106 107 271 Melee 1 | . . . . . . . . . . . . . . . . . . . . . 1 Projectile 870 | . 7 40 14 100 6 20 28 7 90 . 4 . 6 28 33 . . 4 106 107 270 Critical Strikes 34 | . . . 1 2 . . . . 1 . . . . . 2 . . 1 3 10 14 Damage Taken 16766 | . 95 1059 271 1574 118 255 322 128 1359 . 82 118 79 493 373 . . 40 1785 2477 6138 Core 1400 | . . 130 55 113 . 14 . 18 44 . 22 12 . 19 8 . . . 122 235 608 Absorbed by Shields 937 | . . . 5 11 . . . . 162 . . . . 50 160 . . 43 132 374 . Regen/Repaired (Parts) 4125 | . 28 . 5 654 . 100 . 375 276 . 120 . . 14 777 . . . . 1243 533 Core Remaining (%) 77 | 100 . . 26 . . . . 82 . . . . 92 . . . . 97 . 67 . Volleys Fired 1024 | 28 32 89 39 107 6 35 4 42 80 17 11 . 34 83 16 55 . 14 56 130 146 Largest 2 | 2 2 2 2 1 1 1 1 1 1 1 1 . 1 1 1 1 . 1 1 1 1 Hottest 172 | 40 90 90 106 172 89 89 89 89 89 89 89 . 89 89 89 89 . 89 89 89 154 Shots Fired 1157 | 56 61 149 62 107 6 35 4 42 79 17 11 . 34 83 16 55 . 14 56 128 142 Gun 292 | 56 58 127 51 . . . . . . . . . . . . . . . . . . Cannon 830 | . . . 1 107 6 35 4 42 79 17 11 . 34 83 16 55 . 14 56 128 142 Launcher 25 | . 3 22 . . . . . . . . . . . . . . . . . . . Special 10 | . . . 10 . . . . . . . . . . . . . . . . . . Kinetic 660 | 56 . 40 48 97 6 35 4 38 . . . . . . 1 55 . 14 56 123 87 Thermal 316 | . . 5 4 9 . . . 4 79 17 11 . 34 83 15 . . . . . 55 Explosive 7 | . 3 4 . . . . . . . . . . . . . . . . . . . Electromagnetic 164 | . 58 100 . 1 . . . . . . . . . . . . . . . 5 . Robot Hit Streak 26 | 6 4 26 12 21 2 4 5 6 8 3 6 . . 6 3 4 . 6 8 8 7 Robot Miss Streak 8 | 2 3 2 2 4 1 4 . 1 3 1 1 . . 3 3 3 . 1 5 3 8 Penetration Max 1 | . . . . 1 . . . . . . . . . . . . . . . . 1 Secondary Targets 1 | . 1 . . . . . . . . . . . . . . . . . . . . Max Gunslinging Chain 1 | . 1 . . . . . . . . . . . . . . . . . . . . Shots Hit Robots 529 | 28 27 98 40 71 3 11 2 13 42 5 6 . . 32 8 6 . 8 21 46 62 Core Hits 250 | 11 22 46 15 21 2 6 1 7 23 1 1 . . 15 6 5 . 5 11 21 31 Critical Kills 3 | . . . 1 . . . . . . . . . . . . . . . . . 2 Critical Parts Destroyed 1 | . . . . . . . . . . . . . . . . . . . . . 1 Critical Strikes 7 | . 1 1 1 1 . . . . . . . . . . . . . . . . 3 Burn 1 | . . . . 1 . . . . . . . . . . . . . . . . . Destroy 4 | . . . 1 . . . . . . . . . . . . . . . . . 3 Corrupt 2 | . 1 1 . . . . . . . . . . . . . . . . . . . Melee Attacks . | . . . . . . . . . . . . . . . . . . . . . . Impact . | . . . . . . . . . . . . . . . . . . . . . . Slashing . | . . . . . . . . . . . . . . . . . . . . . . Piercing . | . . . . . . . . . . . . . . . . . . . . . . Sneak Attacks . | . . . . . . . . . . . . . . . . . . . . . . Combat Hostiles . | . . . . . . . . . . . . . . . . . . . . . . Follow-up Attacks . | . . . . . . . . . . . . . . . . . . . . . . Damage Inflicted 42194 | 346 599 2189 803 5559 217 1055 211 1362 5595 499 770 . . 4077 868 619 . 938 2646 6003 7838 Guns 2722 | 346 478 1095 803 . . . . . . . . . . . . . . . . . . Cannons 37188 | . . . . 5559 217 1055 211 1362 4685 499 770 . . 4000 868 619 . 938 2646 5921 7838 Explosions 2284 | . 121 1094 . . . . . . 910 . . . . 77 . . . . . 82 . Melee . | . . . . . . . . . . . . . . . . . . . . . . Ramming . | . . . . . . . . . . . . . . . . . . . . . . Kinetic 23710 | 346 . 1204 735 5307 217 1055 211 1018 . . . . . . . 619 . 938 2646 5546 3868 Thermal 16522 | . . 79 68 252 . . . 344 5595 499 770 . . 4077 868 . . . . . 3970 Explosive 235 | . 121 32 . . . . . . . . . . . . . . . . . 82 . Electromagnetic 1727 | . 478 874 . . . . . . . . . . . . . . . . . 375 . Impact . | . . . . . . . . . . . . . . . . . . . . . . Slashing . | . . . . . . . . . . . . . . . . . . . . . . Piercing . | . . . . . . . . . . . . . . . . . . . . . . Highest Corruption 31 | . . . . 1 1 1 1 . 1 1 2 2 . 2 4 4 4 4 . 16 31 Average Corruption 2 | . . . . 1 1 1 1 . 1 1 1 2 . 1 2 4 4 4 . 7 5 Corruption Purged 1 | . . . . 1 . . . . . . . . . . . . . . . . . Corruption Blocked . | . . . . . . . . . . . . . . . . . . . . . . Effects 132 | . . . . 6 6 8 1 . 6 1 3 . . 5 3 12 4 7 . 43 27 Message Errors 26 | . . . . . 2 1 . . 2 . 1 . . 3 . 5 . 2 . 7 3 Matter Fused 35 | . . . . 1 1 2 . . 1 . . . . 1 2 3 . 1 . 15 8 Heat Flow Errors 10 | . . . . 2 . 3 . . 1 . . . . . . . . 1 . 2 1 Energy Discharges 21 | . . . . 1 1 1 1 . 1 . . . . . 1 3 1 1 . 7 3 Parts Rejected 5 | . . . . 1 . . . . . . . . . . . . . 1 . 2 1 Parts Fused 1 | . . . . . . . . . . . . . . . . . . . . 1 . Data Loss (minor) 15 | . . . . 1 2 1 . . . 1 1 . . 1 . . 1 . . 4 3 Data Loss (major) 5 | . . . . . . . . . . . 1 . . . . 1 2 . . . 1 Alerts 5 | . . . . . . . . . . . . . . . . . . 1 . 1 3 Misdirections 2 | . . . . . . . . . . . . . . . . . . . . 2 . Weapon Failures 7 | . . . . . . . . . 1 . . . . . . . . . . 2 4 Overload Shots . | . . . . . . . . . . . . . . . . . . . . . . Overflow Damage 7619 | . . 30 . 1223 . 371 27 132 896 208 352 . . 896 80 19 . 81 470 1371 1463 Projectiles 7478 | . . . . 1223 . 371 27 132 793 208 352 . . 889 80 19 . 81 470 1370 1463 Explosions 141 | . . 30 . . . . . . 103 . . . . 7 . . . . . 1 . Melee . | . . . . . . . . . . . . . . . . . . . . . . Knockbacks 74 | . . . . 24 1 3 1 2 . . . . . . . . . 4 10 21 8 Impact . | . . . . . . . . . . . . . . . . . . . . . . Kinetic 68 | . . . . 22 1 2 1 2 . . . . . . . . . 4 9 20 7 Secondary 6 | . . . . 2 . 1 . . . . . . . . . . . . 1 1 1 Self-Inflicted Damage 306 | . . 117 . 66 . . . . 53 . . . . 70 . . . . . . . Shots 7 | . . 4 . 1 . . . . 1 . . . . 1 . . . . . . . Rammed . | . . . . . . . . . . . . . . . . . . . . . . Targets Rammed . | . . . . . . . . . . . . . . . . . . . . . . Kicked . | . . . . . . . . . . . . . . . . . . . . . . Crushed . | . . . . . . . . . . . . . . . . . . . . . . Highest Temperature 632 | . 258 2 87 632 155 406 112 245 320 182 58 260 72 70 70 82 . 167 130 167 379 Average Temperature 90 | . 65 2 26 136 61 107 56 67 78 62 34 129 36 34 37 44 . 74 53 52 108 Received Heat Transfer 1868 | . 45 135 72 310 . 12 18 54 216 . . . . . . . . 26 89 112 779 Effects 16 | . . . . 13 . 2 . . . . . . . . . . . . . . 1 Shutdowns 2 | . . . . 1 . . . . . . . . . . . . . . . . 1 Energy Bleed 3 | . . . . 2 . 1 . . . . . . . . . . . . . . . Interference 5 | . . . . 5 . . . . . . . . . . . . . . . . . Matter Decay 1 | . . . . 1 . . . . . . . . . . . . . . . . . Damage (minor) 3 | . . . . 2 . 1 . . . . . . . . . . . . . . . Damage (major) 2 | . . . . 2 . . . . . . . . . . . . . . . . . Siege Activations . | . . . . . . . . . . . . . . . . . . . . . . Martial Activations . | . . . . . . . . . . . . . . . . . . . . . . Shielding Activations . | . . . . . . . . . . . . . . . . . . . . . . Robots Disrupted 1 | . . . . . . . . . . . . . . . . . . . . . 1 Combat Hostiles 1 | . . . . . . . . . . . . . . . . . . . . . 1 Robots Corrupted 3 | . . 1 . . . . . . . . . . . . . . . . . 2 . Combat Hostiles 3 | . . 1 . . . . . . . . . . . . . . . . . 2 . Parts Fried 18 | . 2 9 . . . 1 1 . . . . . . . . . . . . 5 . Impact Corruptions 4 | . . . . 1 . 2 . . . . . . . . . . . . . . 1 Robots Melted . | . . . . . . . . . . . . . . . . . . . . . . Combat Hostiles . | . . . . . . . . . . . . . . . . . . . . . . Parts Melted 2 | . . . . . . . . . 1 . . . . . . . . . . . 1 Heat Transferred 4874 | . . 100 148 400 . . . 111 2141 185 222 . . 1271 296 . . . . . . Parts Sabotaged 2 | . . . . . . . . . . . . . . . . . . . . . 2 Parts Stolen . | . . . . . . . . . . . . . . . . . . . . . . Parts Stripped . | . . . . . . . . . . . . . . . . . . . . . . Power Chain Reactions 2 | . . 2 . . . . . . . . . . . . . . . . . . . Alert | -11 -10 -10 -8 -6 -6 -6 -6 -5 -5 -5 -5 -5 -4 -4 -4 -4 -4 -3 -3 -3 -2 ------- Run | Yrd Mat Sub Rec Fac Low Low Zio Pro Fac Upp Upp War Pro Fac Upp Upp Zhi Pro Res Qua Res Maximum Alert Level 3 | . 1 . . 2 . . . . 3 . . . . 1 . . . . 1 2 3 Low Security (%) 75 | 100 97 . 100 78 . . . . 46 . . . . 89 . . . . 95 77 . Level 1 9 | . 2 . . 8 . . . . 5 . . . . 10 . . . . 4 14 39 Level 2 11 | . . . . 13 . . . . 25 . . . . . . . . . . 8 56 Level 3 2 | . . . . . . . . . 22 . . . . . . . . . . . 4 Level 4 . | . . . . . . . . . . . . . . . . . . . . . . Level 5 . | . . . . . . . . . . . . . . . . . . . . . . High Security . | . . . . . . . . . . . . . . . . . . . . . . Max Security . | . . . . . . . . . . . . . . . . . . . . . . Peak Influence 804 | 15 207 . 48 468 . . . . 798 . . . . 236 . . . . 210 491 804 Initial 276 | . 3 . . . . . . . 7 . . . . . . . . . 27 114 276 Average 135 | 2 35 . 3 109 . . . . 344 . . . . 75 . . . . 53 159 438 Influence Increases 6892 | 50 412 140 239 921 50 145 . 235 1112 15 55 . . 682 175 65 . 110 375 969 1142 Destroy 0b10 Robot/C 3260 | . 180 140 140 420 40 120 . 80 500 . 40 . . 260 140 60 . 100 160 320 560 Destroy 0b10 Robot/NC 460 | 50 50 . 45 65 . 15 . 10 20 15 5 . . 40 . 5 . . 35 40 65 Destroy Leader 598 | . 40 . . 142 10 10 . 10 74 . 10 . . 90 20 . . 10 32 50 100 Allied During Kill 31 | . . . 21 10 . . . . . . . . . . . . . . . . . Successful Hack 230 | . 37 . 25 36 . . . . 61 . . . . 18 . . . . 12 5 36 Select Force Hacks 30 | . 30 . . . . . . . . . . . . . . . . . . . . Disable Machine 570 | . 45 . . 90 . . . . 105 . . . . 45 . . . . 60 195 30 Anti-Garrison Action 150 | . . . . . . . . . 150 . . . . . . . . . . . . Destroy Structure 888 | . 15 . 8 83 . . . . 112 . . . . 184 . . . . 46 164 276 Partial Spotted 75 | . . . . 15 . . . . 15 . . . . 15 . . . . . 30 . Lose Combat Pursuer 600 | . 15 . . 60 . . . 135 75 . . . . 30 15 . . . 30 165 75 Influence Decreases 6102 | 45 222 335 239 457 435 224 . 223 369 470 271 84 . 463 232 215 12 70 210 683 843 Entered New Map 1157 | . 2 95 . . 173 16 . . 5 280 57 84 . . 82 32 12 . 13 91 215 Time Decay 4505 | 45 220 240 219 387 262 208 . 223 354 190 214 . . 313 150 183 . 70 187 562 478 Lost Part 230 | . . . . 30 . . . . 10 . . . . . . . . . 10 30 150 Lost Ally 60 | . . . 20 40 . . . . . . . . . . . . . . . . . Purge Threat 150 | . . . . . . . . . . . . . . 150 . . . . . . . Squads Dispatched 49 | . 2 . . 11 . . . . 10 . . . . 7 . . . . 4 5 10 Investigation 7 | . 2 . . . . . . . 2 . . . . 1 . . . . 1 . 1 Extermination 19 | . . . . 4 . . . . 2 . . . . 3 . . . . 1 5 4 Reinforcement 13 | . . . . 4 . . . . 1 . . . . 3 . . . . 2 . 3 Assault 4 | . . . . . . . . . 2 . . . . . . . . . . . 2 Garrison 6 | . . . . 3 . . . . 3 . . . . . . . . . . . . Intercept . | . . . . . . . . . . . . . . . . . . . . . . Searches Triggered . | . . . . . . . . . . . . . . . . . . . . . . Construction Impeded 2 | . . . . . . . . . . . . . . . . . . . 1 . 1 Haulers Reinforced 1 | . . . . 1 . . . . . . . . . . . . . . . . . Active Scanning Responses . | . . . . . . . . . . . . . . . . . . . . . . Cargo Convoy Interrupts 1 | . . . . 1 . . . . . . . . . . . . . . . . . Stealth | -11 -10 -10 -8 -6 -6 -6 -6 -5 -5 -5 -5 -5 -4 -4 -4 -4 -4 -3 -3 -3 -2 --------- Run | Yrd Mat Sub Rec Fac Low Low Zio Pro Fac Upp Upp War Pro Fac Upp Upp Zhi Pro Res Qua Res Distress Signals 12 | . . . . 3 . . . . 1 . . . . 2 . . . . 3 1 2 Communications Jammed 12 | . . . . 4 . . . . . . . . . . . . . . . . 8 Distress Signals 12 | . . . . 4 . . . . . . . . . . . . . . . . 8 Times Spotted 275 | . 13 16 9 29 2 6 4 11 34 . 7 . 1 22 8 . . 5 19 38 51 Peak Tracking Total 12 | . 2 3 3 4 1 4 4 4 8 . 5 . 2 3 5 . . 5 11 9 12 Tactical Retreats 25 | . 1 . . 3 . . . 5 4 . . . . 2 1 . . . 2 4 3 Traps | -11 -10 -10 -8 -6 -6 -6 -6 -5 -5 -5 -5 -5 -4 -4 -4 -4 -4 -3 -3 -3 -2 ------- Run | Yrd Mat Sub Rec Fac Low Low Zio Pro Fac Upp Upp War Pro Fac Upp Upp Zhi Pro Res Qua Res Traps Triggered 16 | . 1 3 . 5 . . . . . . . 2 . . . . . . 1 3 1 Indirectly . | . . . . . . . . . . . . . . . . . . . . . . Trap Hack Attempts . | . . . . . . . . . . . . . . . . . . . . . . Triggered . | . . . . . . . . . . . . . . . . . . . . . . Disarmed . | . . . . . . . . . . . . . . . . . . . . . . Reprogrammed . | . . . . . . . . . . . . . . . . . . . . . . Reused . | . . . . . . . . . . . . . . . . . . . . . . Traps Extracted . | . . . . . . . . . . . . . . . . . . . . . . Installed 4 | . . . . . . 4 . . . . . . . . . . . . . . . Triggered . | . . . . . . . . . . . . . . . . . . . . . . Machines | -11 -10 -10 -8 -6 -6 -6 -6 -5 -5 -5 -5 -5 -4 -4 -4 -4 -4 -3 -3 -3 -2 ---------- Run | Yrd Mat Sub Rec Fac Low Low Zio Pro Fac Upp Upp War Pro Fac Upp Upp Zhi Pro Res Qua Res Machines Disabled 46 | . 3 5 . 6 . . . . 8 . . . 1 3 . 1 . . 4 13 2 Max in Single Turn 4 | . 1 3 . 4 . . . . 3 . . . 1 2 . 1 . . 1 1 1 Garrison Access 1 | . . . . . . . . . 1 . . . . . . . . . . . . Machines Repaired . | . . . . . . . . . . . . . . . . . . . . . . Machines Dismantled . | . . . . . . . . . . . . . . . . . . . . . . Machines Sabotaged . | . . . . . . . . . . . . . . . . . . . . . . Overloaded Fab Kills . | . . . . . . . . . . . . . . . . . . . . . . Hacking | -11 -10 -10 -8 -6 -6 -6 -6 -5 -5 -5 -5 -5 -4 -4 -4 -4 -4 -3 -3 -3 -2 --------- Run | Yrd Mat Sub Rec Fac Low Low Zio Pro Fac Upp Upp War Pro Fac Upp Upp Zhi Pro Res Qua Res Machines Accessed 63 | . 9 2 10 5 . 1 . . 9 1 . . 1 8 . . 6 . 1 7 3 Terminals 37 | . 7 . 6 2 . . . . 8 1 . . . 6 . . . . . 5 2 Fabricators 2 | . . . . 1 . . . . . . . . . 1 . . . . . . . Repair Stations 5 | . 1 . . . . . . . 1 . . . . . . . . . 1 1 1 Recycling Units 5 | . 1 . 3 1 . . . . . . . . . . . . . . . . . Scanalyzers 1 | . . . . . . . . . . . . . . 1 . . . . . . . Garrison Access 2 | . . . . 1 . . . . . . . . . . . . . . . 1 . Total Hacks 179 | . 33 5 24 16 . 1 . . 28 1 . . 1 22 . . 19 . 4 17 8 Successful 93 | . 20 5 12 6 . 1 . . 10 1 . . 1 8 . . 19 . 1 6 3 Failed 85 | . 12 . 12 10 . . . . 18 . . . . 14 . . . . 3 11 5 Catastrophic 8 | . . . . 1 . . . . 3 . . . . 2 . . . . . 2 . Database Lockouts 1 | . 1 . . . . . . . . . . . . . . . . . . . . Manual 62 | . 19 . 16 4 . . . . 19 . . . . 4 . . . . . . . Terminals 113 | . 29 . 17 9 . . . . 27 1 . . . 14 . . . . . 11 5 Fabricators 5 | . . . . 2 . . . . . . . . . 3 . . . . . . . Repair Stations 14 | . 2 . . . . . . . 1 . . . . . . . . . 4 4 3 Recycling Units 10 | . 2 . 5 3 . . . . . . . . . . . . . . . . . Scanalyzers 5 | . . . . . . . . . . . . . . 5 . . . . . . . Garrison Access 4 | . . . . 2 . . . . . . . . . . . . . . . 2 . Terminal Hacks 56 | . 10 5 4 4 . 1 . . 5 1 . . 1 2 . . 19 . . 2 2 Record 16 | . . 4 . . . . . . . 1 . . 1 . . . 7 . . 1 2 Part Schematic 5 | . . . 1 . . . . . . . . . . . . . 4 . . . . Robot Schematic 1 | . . . . . . . . . 1 . . . . . . . . . . . . Robot Analysis 7 | . 1 . 1 1 . . . . . . . . . . . . 4 . . . . Prototype ID Bank 7 | . 1 . . 1 . . . . . . . . . . . . 4 . . 1 . Open Door 1 | . . . . . . 1 . . . . . . . . . . . . . . . Branch Access Points 3 | . 1 . . 1 . . . . . . . . . 1 . . . . . . . Terminal Index 1 | . . . . . . . . . 1 . . . . . . . . . . . . Unreport Threat 1 | . . . . . . . . . . . . . . 1 . . . . . . . Locate Traps 2 | . 2 . . . . . . . . . . . . . . . . . . . . Hauler Manifests 2 | . 1 . . . . . . . 1 . . . . . . . . . . . . Registered Components 1 | . 1 . . . . . . . . . . . . . . . . . . . . Zone Layout 6 | . 3 . . 1 . . . . 2 . . . . . . . . . . . . Proto ID Catalog 1 | . . 1 . . . . . . . . . . . . . . . . . . . Release Object 2 | . . . 2 . . . . . . . . . . . . . . . . . . Fabricator Hacks 2 | . . . . 1 . . . . . . . . . 1 . . . . . . . Network Status 1 | . . . . 1 . . . . . . . . . . . . . . . . . Build 1 | . . . . . . . . . . . . . . 1 . . . . . . . Repair Station Hacks 8 | . 2 . . . . . . . . . . . . . . . . . 1 4 1 Scan Component 5 | . 1 . . . . . . . . . . . . . . . . . 1 2 1 Repair 3 | . 1 . . . . . . . . . . . . . . . . . . 2 . Recycling Unit Hacks . | . . . . . . . . . . . . . . . . . . . . . . Scanalyzer 3 | . . . . . . . . . . . . . . 3 . . . . . . . Insert Component 1 | . . . . . . . . . . . . . . 1 . . . . . . . Analyze 2 | . . . . . . . . . . . . . . 2 . . . . . . . Garrison Access Hacks . | . . . . . . . . . . . . . . . . . . . . . . Unauthorized Hacks 24 | . 8 . 8 1 . . . . 5 . . . . 2 . . . . . . . Terminals 19 | . 7 . 5 1 . . . . 4 . . . . 2 . . . . . . . Track 2 | . 2 . . . . . . . . . . . . . . . . . . . . Botnet 16 | . 4 . 5 1 . . . . 4 . . . . 2 . . . . . . . Operators 1 | . 1 . . . . . . . . . . . . . . . . . . . . Fabricators . | . . . . . . . . . . . . . . . . . . . . . . Repair Stations 1 | . . . . . . . . . 1 . . . . . . . . . . . . Patch 1 | . . . . . . . . . 1 . . . . . . . . . . . . Recycling Units 4 | . 1 . 3 . . . . . . . . . . . . . . . . . . Mask 3 | . . . 3 . . . . . . . . . . . . . . . . . . Tunnel 1 | . 1 . . . . . . . . . . . . . . . . . . . . Scanalyzers . | . . . . . . . . . . . . . . . . . . . . . . Garrison Access . | . . . . . . . . . . . . . . . . . . . . . . Data Cores Recovered 5 | . . . . . . . . . . . . . . 2 . . . . 1 1 1 Used 3 | . . . . . . . . . . . . . . 2 . . . . . . 1 Hacking Detections 44 | . 7 . 7 4 . . . . 8 1 . . . 8 . . . . 1 5 3 Full Trace Events 4 | . 1 . . . . . . . 1 . . . . 1 . . . . . . 1 Feedback Events . | . . . . . . . . . . . . . . . . . . . . . . Feedback Blocked . | . . . . . . . . . . . . . . . . . . . . . . Robot Schematics Acquired 1 | . . . . . . . . . 1 . . . . . . . . . . . . Robots Built . | . . . . . . . . . . . . . . . . . . . . . . Authchips . | . . . . . . . . . . . . . . . . . . . . . . Time . | . . . . . . . . . . . . . . . . . . . . . . Total Robot Build Rating . | . . . . . . . . . . . . . . . . . . . . . . Part Schematics Acquired 5 | . . . 1 . . . . . . . . . . . . . 4 . . . . Parts Built 1 | . . . . . . . . . . . . . . 1 . . . . . . . Authchips . | . . . . . . . . . . . . . . . . . . . . . . Time 69 | . . . . . . . . . . . . . . 69 . . . . . . . Total Part Build Rating 9 | . . . . . . . . . . . . . . 9 . . . . . . . Parts Repaired 3 | . 1 . . . . . . . . . . . . . . . . . . 2 . Time 202 | . 32 . . . . . . . . . . . . . . . . . . 170 . Parts Recycled . | . . . . . . . . . . . . . . . . . . . . . . Recycled Matter . | . . . . . . . . . . . . . . . . . . . . . . Retrieved Matter . | . . . . . . . . . . . . . . . . . . . . . . Retrieved Components . | . . . . . . . . . . . . . . . . . . . . . . Parts Scanalyzed 1 | . . . . . . . . . . . . . . 1 . . . . . . . Part Schematics Acquired . | . . . . . . . . . . . . . . . . . . . . . . Parts Damaged . | . . . . . . . . . . . . . . . . . . . . . . Bothacking | -11 -10 -10 -8 -6 -6 -6 -6 -5 -5 -5 -5 -5 -4 -4 -4 -4 -4 -3 -3 -3 -2 ------------ Run | Yrd Mat Sub Rec Fac Low Low Zio Pro Fac Upp Upp War Pro Fac Upp Upp Zhi Pro Res Qua Res Used RIF Installer . | . . . . . . . . . . . . . . . . . . . . . . Robots Hacked . | . . . . . . . . . . . . . . . . . . . . . . Non-combat . | . . . . . . . . . . . . . . . . . . . . . . Combat . | . . . . . . . . . . . . . . . . . . . . . . Robot Hacks Applied . | . . . . . . . . . . . . . . . . . . . . . . Relay Couplers Released 1 | . . . . . . . . . 1 . . . . . . . . . . . . Machine Destruction 1 | . . . . . . . . . 1 . . . . . . . . . . . . Fabnet Peak Effective % . | . . . . . . . . . . . . . . . . . . . . . . Robots Rewired 23 | . . . 23 . . . . . . . . . . . . . . . . . . Allies Hacked 1 | . . . 1 . . . . . . . . . . . . . . . . . . Hacks Repelled . | . . . . . . . . . . . . . . . . . . . . . . Allies | -11 -10 -10 -8 -6 -6 -6 -6 -5 -5 -5 -5 -5 -4 -4 -4 -4 -4 -3 -3 -3 -2 -------- Run | Yrd Mat Sub Rec Fac Low Low Zio Pro Fac Upp Upp War Pro Fac Upp Upp Zhi Pro Res Qua Res Total Allies 23 | . . . 23 . . . . . . . . . . . . . . . . . . Largest Group 14 | . . . 14 13 . . . . . . . . . . . . . . . . . Highest-Rated Group 193 | . . . 193 193 . . . . . . . . . . . . . . . . . Highest-Rated Ally 34 | . . . 34 34 . . . . . . . . . . . . . . . . . Total Orders 27 | . . . 3 4 . . . . 2 . . . . . . . . . 4 3 11 STAY 5 | . . . 1 4 . . . . . . . . . . . . . . . . . ROAM 2 | . . . . . . . . . . . . . . . . . . . 2 . . FOLLOW 3 | . . . 2 . . . . . . . . . . . . . . . . . 1 EXPLORE 5 | . . . . . . . . . 1 . . . . . . . . . . . 4 RETURN 12 | . . . . . . . . . 1 . . . . . . . . . 2 3 6 Ally Attacks 64 | . . . 44 20 . . . . . . . . . . . . . . . . . Total Damage 981 | . . . 654 327 . . . . . . . . . . . . . . . . . Kills 12 | . . . 10 2 . . . . . . . . . . . . . . . . . Allies Corrupted 2 | . . . . 2 . . . . . . . . . . . . . . . . . Allies Melted . | . . . . . . . . . . . . . . . . . . . . . . Intel | -11 -10 -10 -8 -6 -6 -6 -6 -5 -5 -5 -5 -5 -4 -4 -4 -4 -4 -3 -3 -3 -2 ------- Run | Yrd Mat Sub Rec Fac Low Low Zio Pro Fac Upp Upp War Pro Fac Upp Upp Zhi Pro Res Qua Res Active Infowar (turns) 15700 | 6 927 498 220 1604 570 1386 357 1509 1210 396 454 78 672 1109 307 624 144 296 432 1663 1238 Optics 7623 | . . 20 220 . . . . . . 366 454 78 672 1109 307 624 144 296 432 1663 1238 Sensors 13543 | . . . . 1468 543 1386 357 1509 1210 396 454 78 665 1109 171 624 144 296 432 1663 1038 Terrain 2898 | . . . . . . . . . . . . . . . . . . . 334 1642 922 Seismic 1411 | 6 927 478 . . . . . . . . . . . . . . . . . . . Jamming 807 | . . . . 136 27 . . . . . . . . . . . . . . . 644 ECM 51 | . . . . . . . . . 25 . . . . . . . . . 26 . . Robot Analysis Total 7 | . 1 . 1 1 . . . . . . . . . . . . 4 . . . . Derelict Logs Recovered 13 | . . 1 . . 3 1 . 2 . 1 1 . 1 . 2 1 . . . . . Drone Launches 11 | . . . . . . . . . 1 . . . . . . . . . 2 3 5 Drone Recoveries 11 | . . . . . . . . . 1 . . . . . . . . . 2 3 5 Exploration | -11 -10 -10 -8 -6 -6 -6 -6 -5 -5 -5 -5 -5 -4 -4 -4 -4 -4 -3 -3 -3 -2 ------------- Run | Yrd Mat Sub Rec Fac Low Low Zio Pro Fac Upp Upp War Pro Fac Upp Upp Zhi Pro Res Qua Res Turns Passed 22739 | 220 927 3647 3072 2200 570 1391 358 1657 1284 396 454 78 672 1109 307 624 144 296 432 1663 1238 Spaces Moved 14892 | 79 448 2488 1839 1275 391 746 260 757 960 342 362 74 459 777 210 629 169 318 290 1343 676 Core 47 | 6 . . 41 . . . . . . . . . . . . . . . . . . Treads 2774 | 73 448 211 . . 294 746 260 742 . . . . . . . . . . . . . Legs 4725 | . . . 673 390 97 . . 15 960 342 362 74 459 777 114 . . . . . 462 Wheels 7012 | . . 2277 1125 551 . . . . . . . . . . 96 629 169 318 290 1343 214 Hover 334 | . . . . 334 . . . . . . . . . . . . . . . . . Flight . | . . . . . . . . . . . . . . . . . . . . . . Fastest Speed 50 | 50 160 90 50 90 133 133 133 133 106 106 106 106 106 106 77 77 77 77 77 77 77 Average Speed 109 | 152 160 111 102 131 133 133 133 134 109 106 106 106 106 106 96 77 77 77 77 77 112 Slowest Speed 240 | 160 240 160 120 133 133 133 133 202 165 106 106 106 106 106 133 77 77 77 77 77 156 Overloaded Moves . | . . . . . . . . . . . . . . . . . . . . . . Propulsion Burnouts . | . . . . . . . . . . . . . . . . . . . . . . Robots Hopped . | . . . . . . . . . . . . . . . . . . . . . . Potential Cave-ins 4 | . . . . . . . . 2 . . . . . . . . . 2 . . . Cave-ins Triggered . | . . . . . . . . . . . . . . . . . . . . . . Teleports 1 | . . . . . . . . . . . . . . . . . . . . 1 . Exploration Rate (%) 50 | 6 73 68 99 32 57 73 13 69 30 54 61 14 62 25 48 67 63 64 16 89 27 Regions Visited 21 Branch Regions 15 Pre-discovered Areas 5 | . 1 1 . . . . . . . . . . . . . . 3 . . . . Known Exits Taken 17 | . . . . 1 1 1 1 1 1 1 1 1 1 1 1 1 1 1 1 1 . Unknown Exits Taken 4 | 1 1 1 1 . . . . . . . . . . . . . . . . . . Scrap Searched 21 | . . 6 . . 1 4 . 1 . . 3 . 3 . 1 1 . 1 . . . Spaces Dug 265 | . 7 19 1 60 1 11 1 11 13 5 2 . 13 22 1 22 . . 10 29 37 Terrain Destroyed 807 | . 14 190 7 76 3 23 2 27 57 12 5 . 33 93 6 47 . 5 23 89 95 Melee . | . . . . . . . . . . . . . . . . . . . . . . Projectile 450 | . . . 7 26 3 23 2 27 29 12 5 . 33 47 6 47 . 5 23 60 95 AOE 357 | . 14 190 . 50 . . . . 28 . . . . 46 . . . . . 29 . Terrain Rammed . | . . . . . . . . . . . . . . . . . . . . . . Walls Destroyed . | . . . . . . . . . . . . . . . . . . . . . . Machines Disabled . | . . . . . . . . . . . . . . . . . . . . . . Actions | -11 -10 -10 -8 -6 -6 -6 -6 -5 -5 -5 -5 -5 -4 -4 -4 -4 -4 -3 -3 -3 -2 --------- Run | Yrd Mat Sub Rec Fac Low Low Zio Pro Fac Upp Upp War Pro Fac Upp Upp Zhi Pro Res Qua Res Total 20295 | 119 597 3221 2989 1697 435 1116 268 1362 1127 360 423 73 616 995 298 721 184 356 446 1856 1036 Wait 3614 | 4 85 489 879 230 37 317 1 560 53 . 47 . 111 113 69 34 2 24 85 323 151 Move 14871 | 78 447 2487 1838 1274 390 745 259 756 959 341 361 73 458 776 209 628 168 317 289 1342 676 Hop . | . . . . . . . . . . . . . . . . . . . . . . Pick Up 171 | 2 15 51 9 31 . 3 1 . 6 . . . 3 9 . 1 3 . 2 12 23 Fast Attach 52 | 7 . 8 3 5 . 2 . 1 4 . 1 . 4 . . . 4 1 . 8 4 Attach 36 | . 1 9 1 5 . 1 . . 3 . . . 1 1 . . . . 2 6 6 Detach 5 | . . 1 . . . . . . 1 . . . . . . . . . . 1 2 Swap 139 | . 9 22 1 30 2 2 2 2 14 2 1 . . 4 4 2 1 . 11 20 10 Drop 171 | . 8 49 29 15 . 5 1 1 7 . 2 . 5 9 . 1 6 . 1 14 18 Fire 1024 | 28 32 89 39 107 6 35 4 42 80 17 11 . 34 83 16 55 . 14 56 130 146 Melee . | . . . . . . . . . . . . . . . . . . . . . . Ram . | . . . . . . . . . . . . . . . . . . . . . . Kick . | . . . . . . . . . . . . . . . . . . . . . . Crush . | . . . . . . . . . . . . . . . . . . . . . . Escape Stasis . | . . . . . . . . . . . . . . . . . . . . . . Rewire 192 | . . . 190 . . 2 . . . . . . . . . . . . . . . Trap 4 | . . . . . . 4 . . . . . . . . . . . . . . . Miscellaneous 16 | . . 16 . . . . . . . . . . . . . . . . . . . Route ------- -11/Scrapyard -10/Materials (discovered 3 exits: [*Mat] / *Min / *Sub) -10/Subcaves (discovered 2 exits: [*Mat] / *Rec) -8/Recycling -6/Factory (discovered 4 exits: *Low x2 / Ext x2) -6/Lower Caves -6/Lower Caves (discovered 2 exits: *Fac / *Zio) -6/Zion -5/Proximity Caves -5/Factory (discovered 5 exits: *Fac x3 / *Upp x2) -5/Upper Caves -5/Upper Caves (discovered 2 exits: *Fac / *War) -5/Warlord -4/Proximity Caves -4/Factory (discovered 4 exits: *Res x2 / *Upp x2) -4/Upper Caves -4/Upper Caves (discovered 2 exits: *Res / *Zhi) -4/Zhirov -3/Proximity Caves -3/Research (discovered 3 exits: Arm / *Qua x2) -3/Quarantine -2/Research History --------- Turn | Location | Event 2 | -11/Scrapyard | Met Revision 17 10 | -11/Scrapyard | Discovered new exit (range 14) 221 | -11/Scrapyard | Entered Materials 312 | -10/Materials | Build established: Mutant 759 | -10/Materials | Discovered new exit (range 16) 759 | -10/Materials | Identified exit to Mines 845 | -10/Materials | Discovered new exit (range 11) 854 | -10/Materials | Central database locked down 893 | -10/Materials | Repaired Hvy. EM Pulse Gun 1138 | -10/Materials | Discovered new exit (range 8) 1148 | -10/Materials | Entered Subcaves 1149 | -10/Subcaves | Approached by a straggling Scientist 1756 | -10/Subcaves | Discovered new exit (range 9) 2453 | -10/Subcaves | Visited 4L-MR0's lab 2654 | -10/Subcaves | Discovered new exit (range 14) 2664 | -10/Subcaves | Shifting Twisted Machinery released Sub. Machine Gun 2807 | -10/Subcaves | Found Rainbow Chip 3176 | -10/Subcaves | A swath of the cavern ceiling suddenly collapsed 3584 | -10/Subcaves | Visited Clippyterm 3587 | -10/Subcaves | Learned Research machine intel 4190 | -10/Subcaves | Core integrity fell below 50% 4795 | -10/Subcaves | Entered Recycling 5017 | -8/Recycling | Discovered new exit (range 10) 5505 | -8/Recycling | Build established: Subdweller-Mutant 6132 | -8/Recycling | Build established: Commander-Mutant 6356 | -8/Recycling | Scanned before Scraplab entrance 6374 | -8/Recycling | Entered Scraplab 6470 | -8/Recycling | Angered Scraplab inhabitants 6471 | -8/Recycling | Found Prototype Device 6471 | -8/Recycling | Identified Scrap Engine 6534 | -8/Recycling | Lost 7 allies 6831 | -8/Recycling | Build established: Commander-Construct 7867 | -8/Recycling | Entered Factory 7867 | -6/Factory | Accompanied by 13 allies 7867 | -6/Factory | Evolved 8 slots: Power x1, Propulsion x2, Utility x4, Weapon x1 8213 | -6/Factory | Lost 5 allies 8488 | -6/Factory | Lost 3 allies 8667 | -6/Factory | Cargo convoy interrupted 8830 | -6/Factory | Identified exit to Lower Caves 8830 | -6/Factory | Identified exit to Extension 8972 | -6/Factory | Build established: Construct 9257 | -6/Factory | Garrison activated, responded to threat 10067 | -6/Factory | Entered Lower Caves 10193 | -6/Lower Caves | Learned Factory trap positions 10471 | -6/Lower Caves | Identified exit to Lower Caves 10484 | -6/Lower Caves | Learned Factory trap positions 10637 | -6/Lower Caves | Entered another Lower Caves area 10641 | -6/Lower Caves | Encountered a Warlord checkpoint 10648 | -6/Lower Caves | Discovered new exit (range 12) 10663 | -6/Lower Caves | Identified exit to Factory 10692 | -6/Lower Caves | Attracted the attention of an 0b10 checkpoint 10802 | -6/Lower Caves | Learned location of 2 exits from Factory 11271 | -6/Lower Caves | Found Alien Artifact 11271 | -6/Lower Caves | Identified Core Expander 11271 | -6/Lower Caves | Installed Core Expander, added new Utility slot 11802 | -6/Lower Caves | Discovered new exit (range 10) 11813 | -6/Lower Caves | Identified exit to Zion 11957 | -6/Lower Caves | Found Prototype Device 12028 | -6/Lower Caves | Entered Zion 12133 | -6/Zion | System corruption cleaned by Quarantine Array 12209 | -6/Zion | Given the Hacking Drone Bay 12210 | -6/Zion | Found Prototype Device 12211 | -6/Zion | Identified Hacking Drone Bay 12320 | -6/Zion | Attacked by Zionites 12320 | -6/Zion | Spotted GU-1O9(B) 12320 | -6/Zion | Spotted 7S-4JI(B) 12358 | -6/Zion | Discovered new exit (range 16) 12377 | -6/Zion | Identified exit to Proximity Caves 12386 | -6/Zion | Entered Proximity Caves 12392 | -5/Proximity Caves | Learned Factory emergency access door positions 14043 | -5/Proximity Caves | Entered Factory 14043 | -5/Factory | Evolved 2 slots: Propulsion x1, Utility x1 14044 | -5/Factory | Identified exit to Factory 14045 | -5/Factory | Loaded intel: 78 trap records 14569 | -5/Factory | Discovered exit to Factory (range 11) 14639 | -5/Factory | Garrison activated, responded to threat 14688 | -5/Factory | Destroyed 8 combat bots 15206 | -5/Factory | Discovered new exit (range 7) 15215 | -5/Factory | Identified exit to Upper Caves 15298 | -5/Factory | Discovered exit to Upper Caves (range 15) 15327 | -5/Factory | Entered Upper Caves 15375 | -5/Upper Caves | Spotted B-75 Beast 15584 | -5/Upper Caves | Discovered new exit (range 6) 15590 | -5/Upper Caves | Identified exit to Upper Caves 15617 | -5/Upper Caves | Learned location of 1 exit from Factory 15723 | -5/Upper Caves | Entered another Upper Caves area 15778 | -5/Upper Caves | Discovered exit to Factory (range 3) 15856 | -5/Upper Caves | Encountered a Warlord checkpoint 15916 | -5/Upper Caves | Lost 3 allies 15987 | -5/Upper Caves | Learned 4 Factory zone layouts 16129 | -5/Upper Caves | Discovered new exit (range 6) 16133 | -5/Upper Caves | Identified exit to Warlord 16177 | -5/Upper Caves | Entered Warlord 16214 | -5/Warlord | System corruption cleaned by Quarantine Array 16219 | -5/Warlord | Attacked by Warlord forces 16244 | -5/Warlord | Discovered new exit (range 12) 16254 | -5/Warlord | Identified exit to Proximity Caves 16255 | -5/Warlord | Entered Proximity Caves 16281 | -4/Proximity Caves | Found Alien Artifact 16281 | -4/Proximity Caves | Identified Dimensional Node Initializer 16281 | -4/Proximity Caves | Initialized slip node 16478 | -4/Proximity Caves | Learned Research machine intel 16584 | -4/Proximity Caves | Spotted B-86 Titan 16835 | -4/Proximity Caves | Discovered exit to Factory (range 16) 16927 | -4/Proximity Caves | Entered Factory 16927 | -4/Factory | Evolved 2 slots: Power x1, Utility x1 16928 | -4/Factory | Identified exit to Research 16930 | -4/Factory | Loaded intel: 83 trap records 17070 | -4/Factory | Fabricated Centrium Leg (x1) 17252 | -4/Factory | Discovered exit to Research (range 19) 17637 | -4/Factory | Identified exit to Upper Caves 18036 | -4/Factory | Entered Upper Caves 18201 | -4/Upper Caves | Learned Research emergency access door positions 18224 | -4/Upper Caves | Learned 4 Research zone layouts 18333 | -4/Upper Caves | Discovered new exit (range 12) 18342 | -4/Upper Caves | Identified exit to Upper Caves 18343 | -4/Upper Caves | Entered another Upper Caves area 18343 | -4/Upper Caves | Discovered exit to Research (range 16) 18418 | -4/Upper Caves | Spotted B-86 Titan 18808 | -4/Upper Caves | Discovered new exit (range 20) 18965 | -4/Upper Caves | Identified exit to Zhirov 18967 | -4/Upper Caves | Entered Zhirov 18967 | -4/Zhirov | Discovered new exit (range 3) 18971 | -4/Zhirov | Identified exit to Proximity Caves 18982 | -4/Zhirov | Met Zhirov 18997 | -4/Zhirov | Learned location of Quarantine (-3) 18997 | -4/Zhirov | Learned location of Testing (-2) 18997 | -4/Zhirov | Learned location of Command (-1) 19014 | -4/Zhirov | Zhirov requested help retrieving the SGEMP Prototype 19029 | -4/Zhirov | Found Alien Artifact 19029 | -4/Zhirov | Identified Integrated Reactor 19029 | -4/Zhirov | Installed Integrated Reactor, increased core energy generation (+10) 19043 | -4/Zhirov | Found Alien Artifact 19111 | -4/Zhirov | Entered Proximity Caves 19391 | -3/Proximity Caves | Discovered exit to Research (range 19) 19407 | -3/Proximity Caves | Entered Research 19407 | -3/Research | Evolved 2 slots: Utility x2 19408 | -3/Research | Identified exit to Armory 19409 | -3/Research | Identified exit to Quarantine 19411 | -3/Research | Loaded intel: 104 machine locations 19467 | -3/Research | Found Prototype Device 19469 | -3/Research | Identified Exp. Thermal Shield 19799 | -3/Research | Spotted B-90 Cyclops 19821 | -3/Research | Destroyed 7 combat bots 19824 | -3/Research | Discovered exit to Quarantine (range 11) 19839 | -3/Research | Entered Quarantine 19978 | -3/Quarantine | Found Alien Artifact 20019 | -3/Quarantine | Repaired Centrium Medium Armor Plating 20083 | -3/Quarantine | Repaired Imp. Force Field? 20286 | -3/Quarantine | Found Alien Artifact 20286 | -3/Quarantine | Identified Phase Redirector 20404 | -3/Quarantine | Found Alien Artifact 20788 | -3/Quarantine | Discovered new exit (range 13) 20905 | -3/Quarantine | System corruption reached 10% 20986 | -3/Quarantine | Identified exit to Research 21071 | -3/Quarantine | Found Alien Artifact 21240 | -3/Quarantine | Cryocooling Duct disabled 21255 | -3/Quarantine | Ambient heat levels rising (+20) 21255 | -3/Quarantine | Non-combat units ordered to evacuate 21308 | -3/Quarantine | Met incapacitated Sigix Warrior 21308 | -3/Quarantine | Lockdown squad dispatched 21308 | -3/Quarantine | Identified Core Reset Matrix 21308 | -3/Quarantine | Identified Terrabomb 21308 | -3/Quarantine | Identified Subatomic Replicator 21308 | -3/Quarantine | Identified Transdimensional Reconstructor 21308 | -3/Quarantine | Used Core Reset Matrix 21312 | -3/Quarantine | Sensed 6 artifacts in vicinity 21321 | -3/Quarantine | Found Sigix Containment Pod 21357 | -3/Quarantine | Spotted Lightning 21357 | -3/Quarantine | Spotted Lightning 21357 | -3/Quarantine | Spotted Lightning 21406 | -3/Quarantine | Warped through subspace 21485 | -3/Quarantine | Discovered exit to Research (range 22) 21502 | -3/Quarantine | Entered Research 21502 | -2/Research | Evolved 2 slots: Utility x1, Weapon x1 21770 | -2/Research | Build established: Alien-Skirmisher 21829 | -2/Research | Spotted B-90 Cyclops 21929 | -2/Research | Spotted B-90 Cyclops 22252 | -2/Research | First assault squad dispatched 22655 | -2/Research | System corruption reached 10% 22720 | -2/Research | System corruption reached 30% 22740 | -2/Research | Self-destructed Last Messages --------------- 22724_ R-10 Processor collects Unknown Device. 22725_ P-80 Master destroyed. 22727_ R-10 Processor collects Unknown Leg. 22727_ P-80 Master resets U-05 Engineer, system corruption cleaned. 22728_ System corrupted: Matter fused (-7). 22728_ P-80 Master destroyed. 22731_ Penetrated by Slug. 22732_ Thunder-Centrium Exoskeleton destroyed. 22732_ Scrap Engine suffers catastophic network destabilization. 22734_ Slug penetrates Wall. 22734_ Penetrated by Slug. 22738_ Destroyed Unknown Wheel. 22738_ Destroyed Unknown Special Weapon. 22738_ ALERT: Construction progress impeded, dispatching reinforcements to local area. 22738_ U-05 Engineer builds a Wall. 22738_ R-10 Processor collects Unknown Energy Gun. Map ----- +----------------------------------------------------+ | % " + #?# | | "T # ### | | ##### + ### | | +##+######+####+##### ##### # = ### | | # ############# # # # | | # ############# #############" # | | # ############# # ########## | | # ############# # # | | # "T" ############# # # | | ######## """ ############# # # "" | | ### ################ # # # "" | | ### ###### !%%! %+ # + #""" "" | | ### ###### ! !# # # #""" "" | | ### ###### ! # # # #""" "" | | ### ######! ! =!|#! " # # #"S "" | | ### ######! ! % = #! "" # # #"" "" | | ### ######! !/!/% [" " # # #"" | | ### ###### [=%# # # # | | ### ###### #!! # ####### | | ### ##########+######k######; #############+## | | ### % !=[%=u R * # | | ### !*/!%!! !%= | | ### =[%[%!hw%! = | | ### =**/!mh|=* # | | ### ###+#############%==*#[###############+#### | | ### # # #!@*%############### ?? | | ### # # # ############### ? ? | | ### # """ # ; u u############### ? | | # # """"# # m############### ?""? | | # # """"# # ###############? """ | | # # """# # ! # #####? """ | | # #! # # =%!# #####? ? | | # # # # =! # ##### ? | | # # # # # ##### | | # ########## # + #####?###?## | | + ########## # # #######?###? | | # ########## #| # #########?#? | | # ########## #w! # ###?##?####? | | # #T ##############%!! ###################??? | | ? # + """ #u[ # ?######??? | | ? # # """ #= # ? ?####?#???? | | ?# # """ + + "?" ?#?#?????? | | ? ? ? # # # """ ?##??????? | | ? ? # # # """ ###???#??? | | ##? ??###??? # # # ##???????? | | #?#? ? ?# # # # ????????##?? | | ?? ? ? ? # # #####+#####??????????# | | ? # ?? ?? # #######+### ##### ??####????#????? | | # ? ? ??? ##?##?# ### ?? ? ??? ? ??#??#### | | ?#??######? ?####?# ### ? ? ?#?#????# | +----------------------------------------------------+ Best States ------------- Heat Dissipation 77 Coolant Potential 100 Energy Generation 64 Energy Capacity 549 Matter Stores 300 Matter Capacity 300 Sight Range 22 Robot Scan Range 18 Terrain Scan Range 24 Terrain Scan Density 210 ECM Strength 1 Jamming Range 16 Power Amplification 30 Armor Coverage 825 Evasion (%) 57 Recoil Reduction 3 Kinecelleration 30 Salvage Targeting 8 Offensive Hacking 10 Defensive Hacking 14 Item Schematics ----------------- None Robot Schematics ------------------ None Fabricated ------------ Centrium Leg | x1 | -4/Factory | Preloaded Repaired ---------- Hvy. EM Pulse Gun | 44% | -10/Materials Centrium Medium Armor Plating | 21% | -3/Quarantine Imp. Force Field | 25% | -3/Quarantine Alien Tech Used ----------------- Core Expander Dimensional Node Initializer Integrated Reactor Phase Redirector Core Reset Matrix Transdimensional Reconstructor Achievements -------------- Alien Roots Sniper Challenges ------------ None Game ------ Seed InsulatedFocalMediator Manual? 0 Play Time 05:03:51 Cumulative 231.4 hours Start 2025.08.19 @ 17:21:33 End 2025.08.20 @ 00:56:12 Sessions 5 Manual Loads 0 Difficulty Rogue Special Mode None Game No. 166 Rogue 166 Adventurer 0 Explorer 0 Win Type - Total 2 Types 2/0/0/0/0/0/0/0/0/0 Lore% 67 Gallery% 64 Achievement% 56 Wizard Run 0 Options --------- Layout 1 ASCII 0 Keyboard 0 Movement Mouse Keybinds 0 Fullscreen 1 Font 32/SmallcapsGlow Map View 50x35 Zoom Use 0% Tactical HUD 1 Map Filters NONE Filters NONE Steam 1 RUN: 53ac019e-bb8b-4a0e-a92b-a832156af141